bitfinex-derivatives/quotes_ETHF0:USTF0_20250314
["timestamp","ask_amount","ask_price","bid_price","bid_amount"]
[1741936714302,3.15345,1892.2,1892.1,1.3798]
[1741936714503,1.05711,1892.1,1892.0,3.21572205]
[1741936714709,2.47911,1892.1,1892.0,3.21572205]
[1741936714907,2.47911,1892.1,1892.0,4.53282205]
[1741936715103,2.47911,1892.1,1892.0,3.21572205]
[1741936715812,2.47911,1892.1,1892.0,0.00792205]
[1741936716109,6.56481,1892.1,1891.3,5.978]
[1741936716307,3.2078,1891.8,1891.5,2.0276]
[1741936716513,3.2078,1891.8,1891.6,1.3171]
[1741936716514,3.20123,1891.7,1891.6,1.3171]
[1741936717810,2.1439,1891.7,1891.6,2.37449]
[1741936718011,1.422,1891.7,1891.6,2.37449]
[1741936718711,1.422,1891.7,1891.5,0.00792205]
[1741936718712,1.05739,1891.6,1891.5,0.00792205]
[1741936718911,4.92789,1891.6,1891.5,0.00792205]
[1741936719111,6.33929,1891.6,1891.5,0.00792205]
[1741936719704,6.42789192,1891.6,1891.5,0.00792205]
[1741936719907,6.42788964,1891.6,1891.5,0.00792205]
[1741936721613,1.05755,1891.3,1891.2,1.3801]
[1741936721813,3.30855,1891.3,1891.2,1.3801]
[1741936722109,3.30855,1891.3,1891.0,4.5646]
[1741936722110,1.05765,1891.2,1891.0,4.5646]
[1741936722311,2.1164,1891.1,1891.0,6.97262]
[1741936722511,1.4436,1891.1,1891.0,6.97262]
[1741936723107,2.251,1891.3,1891.2,1.05761]
[1741936723504,2.251,1891.3,1891.1,1.3503]
[1741936723808,2.251,1891.3,1891.2,1.05761]
[1741936724915,1.05761,1891.2,1891.1,1.3503]
[1741936725106,3.06111,1891.2,1891.1,1.3503]
[1741936725707,6.26891,1891.2,1891.1,1.3503]
[1741936726106,3.06111,1891.2,1891.1,1.3503]
[1741936727711,6.26891,1891.2,1891.1,1.3503]
[1741936729214,2.0035,1891.2,1891.1,1.3503]
[1741936729414,2.0035,1891.2,1891.1,2.40797]
[1741936730710,3.06111,1891.2,1891.1,2.40797]
[1741936730910,2.0035,1891.2,1891.1,2.40797]
[1741936731216,1.3434,1891.2,1891.1,2.40797]
[1741936731914,2.252,1891.2,1891.1,2.40797]
[1741936733507,3.9207,1891.5,1891.1,1.3503]
[1741936733813,2.252,1891.4,1891.3,1.05751]
[1741936734014,2.252,1891.4,1891.3,1.76831]
[1741936735214,2.49196,1891.5,1891.3,1.76831]
[1741936735414,6.51726,1891.5,1891.4,1.3165]
[1741936735615,7.18126,1891.5,1891.4,1.3165]
[1741936736910,6.1238,1891.5,1891.2,1.05759]
[1741936737108,1.05755,1891.4,1891.2,1.05759]
[1741936737311,1.05755,1891.4,1891.3,1.3905]
[1741936737721,1.73275,1891.4,1891.3,1.3905]
[1741936738019,1.73275,1891.4,1891.1,1.05762]
[1741936738020,0.6752,1891.4,1891.1,1.05762]
[1741936738226,0.6752,1891.4,1891.2,1.3905]
[1741936738515,4.26535,1891.3,1891.2,1.3905]
[1741936738722,3.2078,1891.3,1891.0,1.74258]
[1741936738921,4.01265,1891.2,1891.1,1.3905]
[1741936739920,4.01265,1891.2,1891.1,2.44817]
[1741936740123,2.252,1891.2,1891.1,2.44817]
[1741936741933,3.2078,1891.3,1891.1,1.3905]
[1741936742124,3.2078,1891.3,1891.2,2.49941]
[1741936743922,3.2078,1891.5,1891.4,1.0575]
[1741936744222,6.52507205,1891.7,1891.5,1.05739]
[1741936744416,6.52507205,1891.7,1891.6,2.1054]
[1741936745017,6.52505205,1891.7,1891.6,2.1054]
[1741936746019,4.27305205,1891.7,1891.6,2.1054]
[1741936746221,3.31725205,1891.7,1891.6,2.1054]
[1741936747127,2.25992205,1891.7,1891.6,3.16279]
[1741936747626,0.00792205,1891.7,1891.6,3.16279]
[1741936748728,0.00792205,1891.7,1891.6,2.1054]
[1741936749021,1.06525205,1891.7,1891.6,2.1054]
[1741936749222,1.06525205,1891.7,1891.6,3.16279]
[1741936749627,1.73275205,1891.7,1891.6,3.16279]
[1741936749826,0.67542205,1891.7,1891.6,3.16279]
[1741936750032,1.73275205,1891.7,1891.6,2.1054]
[1741936750231,1.73275205,1891.7,1891.6,1.4418]
[1741936750735,1.39272205,1891.7,1891.6,1.4418]
[1741936750935,1.39272205,1891.7,1891.6,2.49919]
[1741936752324,0.67542205,1891.7,1891.6,2.49919]
[1741936753024,1.73275205,1891.7,1891.6,2.49919]
[1741936753533,0.67542205,1891.7,1891.6,2.49919]
[1741936754427,2.11302205,1891.7,1891.6,2.49919]
[1741936755034,3.17035205,1891.7,1891.6,2.49919]
[1741936755333,3.17035205,1891.7,1891.6,1.4418]
[1741936756731,3.88675205,1891.7,1891.6,1.4418]
[1741936757438,3.88675205,1891.7,1891.6,2.49919]
[1741936758737,2.82942205,1891.7,1891.6,2.49919]
[1741936758934,2.82942205,1891.7,1891.2,7.03559]
[1741936758935,1.05751,1891.4,1891.2,7.03559]
[1741936759134,2.252,1891.4,1891.2,5.978]
[1741936759344,3.71905,1891.3,1891.2,5.978]
[1741936759632,3.71905,1891.3,1891.2,1.35]
[1741936759828,3.7191,1891.3,1891.0,3.09689]
[1741936760031,1.3183,1891.2,1891.1,1.35]
[1741936760235,2.37591,1891.2,1891.1,1.35]
[1741936762235,1.05772,1891.0,1890.9,3.21572205]
[1741936762932,3.10112,1891.0,1890.9,3.21572205]
[1741936763430,3.10112,1891.0,1890.9,4.64202205]
[1741936763635,2.0434,1891.0,1890.9,4.64202205]
[1741936764135,2.0434,1891.0,1890.9,5.31732205]
[1741936764732,3.10112,1891.0,1890.9,5.31732205]
[1741936766847,2.0434,1891.0,1890.9,5.31732205]
[1741936767040,2.0434,1891.0,1890.9,6.37510205]
[1741936767342,3.10112,1891.0,1890.9,5.31732205]
[1741936767644,2.0434,1891.0,1890.9,6.37510205]
[1741936768237,2.252,1891.1,1890.9,5.31732205]
[1741936768439,2.252,1891.1,1891.0,3.10972]
[1741936769538,1.3305,1891.4,1891.0,2.052]
[1741936769837,2.252,1891.3,1891.2,1.05757]
[1741936770545,1.3959,1891.3,1891.2,1.05757]
[1741936775442,1.3959,1891.3,1891.2,2.38527]
[1741936775744,2.252,1891.4,1891.3,1.05755]
[1741936775935,2.252,1891.4,1891.3,2.49295]
[1741936776834,3.30944,1891.5,1891.3,2.49295]
[1741936777141,3.30944,1891.5,1891.4,2.1266]
[1741936777142,4.63144,1891.5,1891.4,2.1266]
[1741936778244,4.63144,1891.5,1891.4,1.4354]
[1741936783749,4.63144,1891.5,1891.4,2.4929]
[1741936784051,1.322,1891.5,1891.4,2.4929]
[1741936784254,1.433,1891.6,1891.4,2.4929]
[1741936784255,1.7721,1891.6,1891.5,1.05744]
[1741936784548,5.361,1891.6,1891.5,3.03454]
[1741936785251,3.109,1891.6,1891.5,1.9771]
[1741936785453,2.0516,1891.6,1891.5,1.9771]
[1741936785648,2.0516,1891.6,1891.5,3.03454]
[1741936785850,5.46772205,1891.7,1891.5,1.9771]
[1741936786047,6.80842205,1891.7,1891.6,3.17339]
[1741936786347,0.00792205,1891.7,1891.6,3.17339]
[1741936787250,1.3407,1891.9,1891.8,1.05727]
[1741936788643,1.3407,1891.9,1891.8,2.47457]
[1741936790857,1.0573,1891.8,1891.6,1.77727]
[1741936791054,1.0573,1891.8,1891.7,1.4353]
[1741936792256,1.05725,1891.9,1891.7,2.49263]
[1741936792445,1.05725,1891.9,1891.8,1.4353]
[1741936793850,1.71975,1891.9,1891.8,1.4353]
[1741936796254,1.79228666,1891.9,1891.8,1.4353]
[1741936798860,0.73503666,1891.9,1891.8,1.4353]
[1741936799061,0.73503666,1891.9,1891.8,2.49257]
[1741936799552,0.07253666,1891.9,1891.8,2.49257]
[1741936800452,3.9212,1892.3,1892.0,1.05713]
[1741936800453,6.1722,1892.3,1892.0,1.05713]
[1741936800654,1.05708,1892.2,1892.1,0.7128]
[1741936800855,1.05708,1892.2,1892.1,2.0253]
[1741936803160,3.89642205,1892.3,1892.1,2.0253]
[1741936803359,3.21572205,1892.3,1892.2,3.21735]
[1741936803662,1.06491205,1892.3,1892.2,1.4438]
[1741936804056,0.00792205,1892.3,1892.2,2.50085]
[1741936804471,1.31932205,1892.3,1892.2,2.50085]
[1741936804766,3.57032205,1892.3,1892.2,2.50085]
[1741936806561,4.62731205,1892.3,1892.2,1.4438]
[1741936808769,4.62731205,1892.3,1892.2,2.50085]
[1741936808770,3.57032205,1892.3,1892.2,2.50085]
[1741936812061,4.62731205,1892.3,1892.2,1.4438]
[1741936812672,1.05705,1892.2,1892.1,1.0571]
[1741936812872,3.20545,1892.2,1892.1,2.3736]
[1741936813073,3.20545,1892.2,1892.1,1.3165]
[1741936813264,3.20545,1892.2,1892.1,2.37361]
[1741936813467,3.20545,1892.2,1892.1,1.3165]
[1741936814169,1.05729,1891.8,1891.6,1.05735]
[1741936814370,6.51599,1892.0,1891.8,1.05726]
[1741936814575,6.51599,1892.0,1891.9,1.3165]
[1741936815077,1.05724,1891.9,1891.7,1.05729]
[1741936815274,1.77524,1891.9,1891.8,1.3165]
[1741936816776,0.718,1891.9,1891.8,1.3165]
[1741936817078,0.718,1891.9,1891.8,2.37377]
[1741936817379,3.30819,1892.0,1891.8,2.37377]
[1741936817581,3.30819,1892.0,1891.9,1.3429]
[1741936819481,2.251,1892.0,1891.9,2.40012]
[1741936820673,2.251,1892.0,1891.9,3.74482]
[1741936821883,2.251,1892.1,1892.0,1.05713]
[1741936822085,2.251,1892.1,1892.0,2.43783]
[1741936828387,0.68152205,1892.3,1892.0,1.3807]
[1741936828685,1.73853205,1892.3,1892.2,1.05705]
[1741936828876,3.98953205,1892.3,1892.2,1.05705]
[1741936829389,2.25892205,1892.3,1892.2,1.05705]
[1741936829782,0.00792205,1892.3,1892.2,2.39815]
[1741936830185,2.25892205,1892.3,1892.2,2.39815]
[1741936832697,0.00792205,1892.3,1892.2,2.39815]
[1741936833191,1.06491205,1892.3,1892.2,2.39815]
[1741936833384,0.00792205,1892.3,1892.2,2.39815]
[1741936834693,1.32412205,1892.3,1892.2,2.39815]
[1741936836297,1.32412205,1892.3,1892.1,1.3927]
[1741936836491,1.05705,1892.2,1892.1,1.3927]
[1741936836794,1.75985,1892.2,1892.1,1.3927]
[1741936838491,1.75985,1892.2,1892.1,2.44981]
[1741936838492,0.7028,1892.2,1892.1,2.44981]
[1741936838793,2.38115205,1892.3,1892.1,2.44981]
[1741936838988,0.00792205,1892.3,1892.2,1.3051]
[1741936839189,1.06491205,1892.3,1892.2,1.3051]
[1741936841990,0.00792205,1892.3,1892.2,2.36215]
[1741936845590,0.00792205,1892.3,1892.2,5.56995]
[1741936852801,2.9435,1892.6,1892.5,1.05688]
[1741936853308,7.2366,1892.7,1892.5,1.05688]
[1741936853508,7.2366,1892.7,1892.6,2.0304]
[1741936854409,8.6219,1892.7,1892.6,2.0304]
[1741936855001,8.6219,1892.7,1892.6,3.08723]
[1741936855405,8.6219,1892.7,1892.6,2.0304]
[1741936856806,5.3151,1892.7,1892.6,3.08723]
[1741936857110,7.5651,1892.7,1892.6,3.08723]
[1741936857312,5.3151,1892.7,1892.6,3.08723]
[1741936857509,7.5651,1892.7,1892.6,3.08723]
[1741936858010,6.8431,1892.7,1892.6,3.08723]
[1741936858315,4.5931,1892.7,1892.6,3.08723]
[1741936861210,1.3853,1892.7,1892.6,3.08723]
[1741936865217,1.32102205,1892.8,1892.7,1.05677]
[1741936865410,2.37774205,1892.8,1892.7,3.11007]
[1741936865813,1.32102205,1892.8,1892.7,3.11007]
[1741936867217,0.00792205,1892.8,1892.7,3.11007]
[1741936870524,1.40672205,1892.8,1892.7,3.11007]
[1741936871527,0.00792205,1892.8,1892.7,3.11007]
[1741936872133,2.25,1893.2,1893.1,1.0565]
[1741936872627,1.3988,1893.2,1893.1,1.0565]
[1741936872827,0.6651,1893.4,1893.0,11.2182]
[1741936873029,1.72148,1893.4,1893.2,1.05645]
[1741936873227,2.39020205,1893.4,1893.0,9.8365]
[1741936873529,1.05645,1893.3,1893.1,1.0565]
[1741936874118,1.3225,1893.2,1893.1,2.4412]
[1741936876719,1.33382205,1893.4,1893.1,1.3847]
[1741936876924,1.4104,1893.3,1893.2,3.10379]
[1741936877933,1.4104,1893.3,1893.2,6.31159]
[1741936878233,0.00792205,1893.4,1893.3,1.05644]
[1741936878434,0.00792205,1893.4,1893.3,3.14784]
[1741936887627,0.00792205,1893.4,1893.3,9.12584]
[1741936889534,0.00792205,1893.4,1893.3,9.55291601]
[1741936891737,1.3312,1893.7,1893.3,9.55291601]
[1741936891738,1.3312,1893.7,1893.6,1.05627]
[1741936892338,1.3312,1893.7,1893.6,2.37757]
[1741936899548,1.3312,1893.7,1893.5,3.2078]
[1741936899746,2.9531,1893.6,1893.3,3.2078]
[1741936900046,1.05638,1893.4,1893.3,3.2078]
[1741936900438,2.1192,1893.5,1893.3,3.2078]
[1741936900636,1.439,1893.4,1893.3,3.2078]
[1741936901040,1.439,1893.4,1893.3,4.26424]
[1741936901439,1.439,1893.4,1893.3,4.97164]
[1741936901639,1.439,1893.4,1893.3,1.05644]
[1741936905554,1.439,1893.4,1893.3,4.26424]
[1741936905854,1.439,1893.4,1893.3,4.94404]
[1741936907055,1.439,1893.4,1893.3,4.26424]
[1741936908555,1.439,1893.4,1893.3,4.97414]
[1741936909152,1.439,1893.4,1893.3,4.92112282]
[1741936909544,1.439,1893.4,1893.3,4.26424]
[1741936914456,1.439,1893.4,1893.3,1.05644]
[1741936914658,1.439,1893.4,1893.2,5.58334]
[1741936914961,0.7004,1893.3,1893.2,5.58334]
[1741936915864,2.0912,1893.3,1893.2,5.58334]
[1741936918158,1.3908,1893.3,1893.2,5.58334]
[1741936918763,2.9282,1893.5,1893.4,1.05638]
[1741936918964,2.0154,1893.5,1893.4,4.26418]
[1741936919359,2.0154,1893.5,1893.4,5.64708]
[1741936919561,3.07172,1893.5,1893.4,1.3829]
[1741936919766,3.07172,1893.5,1893.3,1.05642]
[1741936919969,2.0368,1893.4,1893.3,2.43932]
[1741936921465,2.0368,1893.4,1893.3,1.3829]
[1741936921768,3.09318,1893.4,1893.3,1.3829]
[1741936922167,3.09318,1893.4,1893.2,4.26427]
[1741936922371,1.70738,1893.4,1893.3,1.4139]
[1741936922870,1.70738,1893.4,1893.2,4.26427]
[1741936923058,0.651,1893.4,1893.2,5.67817]
[1741936923262,0.651,1893.4,1893.3,2.47034]
[1741936925271,1.05644,1893.3,1893.2,3.2078]
[1741936928768,1.05644,1893.3,1893.2,4.5279]
[1741936929360,0.651,1893.4,1893.3,1.05644]
[1741936929567,3.95638,1893.4,1893.3,1.3201]
[1741936931670,1.05646,1893.3,1893.1,1.05652]
[1741936931861,1.05646,1893.3,1893.1,2.41712]
[1741936932067,0.6951,1893.2,1893.1,2.41712]
[1741936932268,0.6951,1893.2,1893.1,1.05652]
[1741936933675,1.75159,1893.2,1893.1,1.05652]
[1741936934276,0.6951,1893.2,1893.1,1.05652]
[1741936934575,1.75159,1893.2,1893.1,1.05652]
[1741936935670,0.6951,1893.2,1893.1,1.05652]
[1741936935876,1.75161,1893.2,1893.1,1.05655]
[1741936936568,1.75161,1893.2,1893.0,2.48335]
[1741936936878,1.4173,1893.1,1893.0,2.48335]
[1741936939167,3.2078,1893.3,1893.2,1.05649]
[1741936939372,4.5248,1893.3,1893.2,1.05649]
[1741936942366,3.2078,1893.3,1893.2,1.05649]
[1741936948482,4.5537,1893.3,1893.2,1.05649]
[1741936948884,1.3459,1893.3,1893.2,1.05649]
[1741936949778,2.249,1893.5,1893.4,1.05638]
[1741936950974,0.6643,1893.6,1893.5,1.05632]
[1741936951179,5.4568,1893.7,1893.6,1.05627]
[1741936951381,6.7962,1893.7,1893.6,1.05627]
[1741936951874,3.5884,1893.7,1893.6,1.05627]
[1741936952484,1.3394,1893.7,1893.6,1.05627]
[1741936956291,4.26381,1894.1,1893.9,1.05609]
[1741936956589,4.2774,1894.0,1893.5,5.8486]
[1741936956789,1.351,1893.9,1893.8,1.06403205]
[1741936957291,4.5588,1893.9,1893.8,1.06403205]
[1741936958393,1.351,1893.9,1893.8,1.06403205]
[1741936959195,4.5588,1893.9,1893.8,1.06403205]
[1741936959388,1.351,1893.9,1893.8,1.06403205]
[1741936964288,2.9576,1894.1,1894.0,1.05605]
[1741936964880,4.3638,1894.1,1894.0,1.05605]
[1741936968784,2.1158,1894.1,1894.0,1.05605]
[1741936968986,4.3638,1894.1,1894.0,1.05605]
[1741936969486,2.1158,1894.1,1894.0,1.05605]
[1741936969693,5.4558,1894.3,1894.2,1.05593]
[1741936969888,6.51168,1894.3,1894.1,1.05595]
[1741936970090,0.7155,1894.2,1894.1,1.05595]
[1741936971294,2.1133,1894.2,1894.1,1.05595]
[1741936971891,3.16925,1894.2,1894.0,1.05602]
[1741936972193,3.17052,1894.1,1893.9,4.26388]
[1741936972499,1.3978,1894.0,1893.9,4.26388]
[1741936973090,1.3978,1894.0,1893.9,1.05608]
[1741936973591,1.3978,1894.0,1893.9,2.42688]
[1741936974097,5.4558,1894.3,1893.9,1.3708]
[1741936974397,5.956,1894.5,1894.0,3.2078]
[1741936974398,1.3452,1894.4,1894.0,3.2078]
[1741936974691,2.248,1894.3,1894.2,1.05593]
[1741936975202,3.6712,1894.3,1894.2,1.05593]
[1741936975400,3.6712,1894.3,1894.2,2.42673]
[1741936985708,3.6712,1894.3,1894.2,5.63453]
[1741936986702,3.6712,1894.3,1894.1,1.3991]
[1741936986905,1.0561,1893.9,1893.8,0.00792205]
[1741936987206,2.247,1893.9,1893.8,1.06408205]
[1741936987602,3.5986,1893.9,1893.8,1.06408205]
[1741936988298,3.5986,1893.9,1893.8,2.44908205]
[1741936988498,1.4317,1894.1,1894.0,1.05605]
[1741936988700,2.0678,1894.1,1894.0,1.05605]
[1741936989006,1.3516,1894.1,1894.0,1.05605]
[1741936989197,2.247,1894.3,1894.2,1.05593]
[1741936989394,3.5829,1894.3,1894.2,1.05593]
[1741936989702,1.3359,1894.3,1894.2,1.05593]
[1741936989899,1.3359,1894.3,1894.1,1.05594]
[1741936990095,1.3359,1894.3,1894.2,1.3491]
[1741936994114,1.3359,1894.3,1894.2,2.40503]
[1741936997310,1.3359,1894.3,1894.2,3.73633]
[1741937002221,1.3186,1894.4,1894.3,1.05588]
[1741937002515,1.3186,1894.4,1894.3,2.43928]
[1741937006528,0.6968,1894.5,1894.3,1.3834]
[1741937006718,1.4173,1894.5,1894.4,2.47642]
[1741937010326,1.4173,1894.5,1894.4,3.18102]
[1741937010722,0.92953996,1895.0,1894.4,3.18102]
[1741937010922,2.0029,1894.8,1894.7,1.05562]
[1741937011426,3.05853,1894.8,1894.6,2.36479]
[1741937011624,1.3376,1894.7,1894.6,2.36479]
[1741937011823,1.3376,1894.7,1894.6,1.05569]
[1741937024530,1.3376,1894.7,1894.6,2.40179]
[1741937027729,1.3376,1894.7,1894.4,5.978]
[1741937027936,1.05577,1894.5,1894.4,7.03382]
[1741937028135,5.64355,1894.6,1894.4,1.05582]
[1741937028337,3.6324,1894.5,1894.4,1.05582]
[1741937034541,1.3864,1894.5,1894.4,1.05582]
[1741937034937,1.3864,1894.5,1894.4,2.41522]
[1741937038143,3.9232,1894.6,1894.5,1.05577]
[1741937038352,4.5246,1894.6,1894.5,2.40327]
[1741937038844,3.2078,1894.6,1894.5,2.40327]
[1741937039544,4.92191,1894.6,1894.5,1.3475]
[1741937039739,5.183,1894.6,1894.5,2.40327]
[1741937039935,5.183,1894.6,1894.5,1.3475]
[1741937040135,5.183,1894.6,1894.5,2.40327]
[1741937041461,6.23871,1894.6,1894.5,2.40327]
[1741937041644,5.183,1894.6,1894.5,2.40327]
[1741937042144,6.23871,1894.6,1894.5,1.3475]
[1741937042542,5.183,1894.6,1894.5,1.3475]
[1741937042739,5.183,1894.6,1894.5,2.40327]
[1741937043951,5.183,1894.6,1894.5,3.11977]
[1741937045050,6.23871,1894.6,1894.5,2.40327]
[1741937045251,6.23871,1894.6,1894.5,1.3475]
[1741937045862,6.23871,1894.6,1894.5,2.40327]
[1741937047156,5.183,1894.6,1894.5,2.40327]
[1741937047355,5.183,1894.6,1894.5,3.05797]
[1741937049356,6.23871,1894.6,1894.5,2.40327]
[1741937049655,8.48471,1894.6,1894.5,2.40327]
[1741937050352,5.27691,1894.6,1894.5,2.40327]
[1741937052159,4.2212,1894.6,1894.4,1.76878]
[1741937052345,3.09327,1894.5,1894.4,1.4316]
[1741937052546,3.09327,1894.5,1894.4,2.48742]
[1741937056853,3.09327,1894.5,1894.4,3.16162]
[1741937058455,2.0375,1894.5,1894.4,3.16162]
[1741937058954,3.09327,1894.5,1894.4,3.16162]
[1741937059562,2.42067,1894.5,1894.4,3.16162]
[1741937061751,1.3649,1894.5,1893.9,11.82596]
[1741937061961,1.3649,1894.5,1893.8,0.00792205]
[1741937061962,2.6879,1894.4,1894.0,1.3785]
[1741937062161,6.7651,1894.3,1894.0,1.3785]
[1741937062359,1.3113,1894.2,1894.1,2.43569]
[1741937063161,2.246,1894.3,1894.2,1.05593]
[1741937063458,2.246,1894.3,1894.2,1.3797]
[1741937063666,3.30188,1894.3,1894.2,1.3797]
[1741937063864,2.246,1894.3,1894.2,2.43563]
[1741937064067,5.4538,1894.3,1894.0,0.7029]
[1741937064266,1.05598,1894.2,1894.1,1.05598]
[1741937064462,2.36728,1894.2,1894.1,1.3797]
[1741937066766,2.36728,1894.2,1894.1,2.43569]
[1741937067263,2.36723,1894.2,1894.1,2.43569]
[1741937068371,2.36723,1894.2,1894.1,1.3797]
[1741937069667,2.36723,1894.2,1894.1,2.43569]
[1741937070170,2.36723,1894.2,1894.1,1.3797]
[1741937070764,2.36723,1894.2,1894.1,2.43569]
[1741937071165,1.3113,1894.2,1893.8,0.00792205]
[1741937071466,1.05606,1894.0,1893.9,1.05607]
[1741937071863,2.42186,1894.0,1893.9,1.05607]
[1741937072969,1.3658,1894.0,1893.9,1.05607]
[1741937073670,2.42185,1894.0,1893.9,1.05607]
[1741937073871,1.3658,1894.0,1893.9,1.05607]
[1741937074371,2.42185,1894.0,1893.9,1.05607]
[1741937075571,4.66785,1894.0,1893.9,1.05607]
[1741937076774,3.6118,1894.0,1893.9,1.05607]
[1741937077176,3.6118,1894.0,1893.9,1.72967]
[1741937077576,4.66785,1894.0,1893.9,1.72967]
[1741937078871,3.2078,1894.1,1893.9,1.72967]
[1741937079076,1.3203,1894.2,1894.1,1.05599]
[1741937079376,2.37623,1894.2,1894.1,2.43009]
[1741937080279,9.1638,1894.9,1894.2,1.05593]
[1741937080478,3.7456679,1894.8,1894.4,3.2078]
[1741937080779,4.58618402,1894.8,1894.4,4.26358]
[1741937081079,1.05577,1894.5,1894.4,4.26358]
[1741937081476,3.30177,1894.5,1894.4,3.2078]
[1741937081776,3.30177,1894.5,1894.4,4.5901]
[1741937082479,3.30177,1894.5,1894.4,5.64592]
[1741937083382,2.246,1894.5,1894.4,5.64592]
[1741937084179,2.246,1894.5,1894.4,4.5901]
[1741937084379,4.01987,1894.5,1894.4,1.3823]
[1741937084576,4.69237,1894.5,1894.4,1.3823]
[1741937084878,5.99187,1894.5,1894.4,1.3823]
[1741937086372,4.9361,1894.5,1894.2,0.6594]
[1741937086567,2.35536,1894.4,1894.3,2.44667]
[1741937087572,1.2995,1894.4,1894.3,2.44667]
[1741937088977,2.35532,1894.4,1894.3,2.44667]
[1741937092582,1.05593,1894.2,1894.1,0.6718]
[1741937092777,3.30193,1894.2,1894.1,1.3166]
[1741937093284,5.38203,1894.2,1894.1,1.3166]
[1741937095885,5.38203,1894.2,1894.1,2.37259]
[1741937096279,4.3261,1894.2,1893.9,4.6125]
[1741937096482,2.0042,1894.1,1893.9,4.6125]
[1741937096687,1.71822,1894.1,1894.0,1.05605]
[1741937097489,1.71821,1894.1,1894.0,1.05605]
[1741937097688,3.06021,1894.1,1894.0,2.43725]
[1741937098589,1.342,1894.1,1894.0,2.43725]
[1741937099287,2.246,1894.2,1894.1,1.05599]
[1741937099491,3.5676,1894.2,1894.1,3.08339]
[1741937100190,1.05588,1894.3,1894.2,1.05593]
[1741937100391,4.62348,1894.3,1894.2,2.0272]
[1741937100782,4.62348,1894.3,1894.2,3.08313]
[1741937101095,3.2078,1894.4,1894.2,2.0272]
[1741937101288,5.4538,1894.4,1894.3,2.42238]
[1741937101687,7.83122,1894.4,1894.3,2.42238]
[1741937101988,2.37742,1894.4,1894.3,2.42238]
[1741937102191,2.37742,1894.4,1894.3,1.3665]
[1741937103288,1.05593,1894.2,1894.1,0.6609]
[1741937103488,3.30198,1894.2,1894.1,1.05597]
[1741937103889,3.98128,1894.2,1894.1,1.05597]
[1741937104587,5.40668,1894.2,1894.1,2.47117]
[1741937104986,3.2078,1894.4,1894.3,1.05588]
[1741937105295,7.92703,1894.4,1894.3,1.05588]
[1741937105788,7.92703,1894.4,1894.3,1.75458]
[1741937106687,7.92703,1894.4,1894.3,0.6987]
[1741937107090,7.92703,1894.4,1894.3,3.07948]
[1741937108293,1.05599,1894.1,1894.0,0.6878]
[1741937108497,1.05599,1894.1,1894.0,1.301]
[1741937108699,3.30199,1894.1,1894.0,2.35705]
[1741937108894,3.30199,1894.1,1894.0,3.06605]
[1741937110798,3.30199,1894.1,1894.0,2.01]
[1741937111295,3.30199,1894.1,1894.0,1.301]
[1741937113698,3.30199,1894.1,1894.0,2.35705]
[1741937114098,2.46747,1894.2,1894.1,1.05599]
[1741937114298,4.71347,1894.2,1894.1,2.45849]
[1741937114691,4.71347,1894.2,1894.1,1.4025]
[1741937116197,4.71347,1894.2,1894.1,2.1074]
[1741937116391,4.71347,1894.2,1894.1,3.16339]
[1741937116592,1.4115,1894.2,1894.1,3.16339]
[1741937116787,3.6575,1894.2,1894.1,3.16339]
[1741937117293,2.246,1894.2,1894.1,3.16339]
[1741937117501,4.71417,1894.4,1894.3,1.05588]
[1741937118103,4.71417,1894.4,1894.3,1.72998]
[1741937118797,4.71412,1894.4,1894.3,1.72998]
[1741937119499,4.26353,1894.6,1894.3,0.6741]
[1741937119704,3.30177,1894.5,1894.4,3.07828]
[1741937119997,2.246,1894.5,1894.4,1.74288]
[1741937120795,3.5664,1894.5,1894.4,3.11678]
[1741937123698,2.246,1894.5,1894.4,3.11678]
[1741937124507,4.70897,1894.5,1894.4,3.11678]
[1741937125008,3.6532,1894.5,1894.4,3.11678]
[1741937125705,4.70897,1894.5,1894.4,3.11678]
[1741937126204,1.4072,1894.5,1894.4,3.11678]
[1741937127605,2.46297,1894.5,1894.4,3.11678]
[1741937128700,1.4072,1894.5,1894.4,3.11678]
[1741937130906,2.46297,1894.5,1894.4,3.11678]
[1741937131111,1.4072,1894.5,1894.4,3.11678]
[1741937134412,2.46297,1894.5,1894.4,3.11678]
[1741937134612,3.11987,1894.5,1894.4,3.11678]
[1741937137112,2.0641,1894.5,1894.4,3.11678]
[1741937138301,1.4072,1894.5,1894.4,3.11678]
[1741937138810,3.30174,1894.6,1894.5,1.05577]
[1741937139115,3.30174,1894.6,1894.5,2.45557]
[1741937139116,4.65694,1894.6,1894.5,2.45557]
[1741937139612,3.6012,1894.6,1894.5,2.45557]
[1741937139908,1.72478,1894.7,1894.6,1.05571]
[1741937140114,3.97078,1894.7,1894.6,2.45551]
[1741937141309,5.32598,1894.7,1894.6,2.45551]
[1741937142411,5.32598,1894.7,1894.6,1.3998]
[1741937142613,5.32598,1894.7,1894.6,2.45551]
[1741937144507,3.07998,1894.7,1894.6,2.45551]
[1741937144709,5.32596,1894.7,1894.6,2.45551]
[1741937150924,3.2078,1894.8,1894.6,1.3998]
[1741937151117,6.8108,1894.8,1894.7,3.02256]
[1741937153111,1.357,1894.8,1894.7,6.23036]
[1741937153308,9.1638,1895.2,1894.8,2.63901]
[1741937153309,2.246,1895.2,1894.8,2.63901]
[1741937153511,2.246,1895.2,1895.1,1.05542]
[1741937154019,2.42745,1895.3,1895.1,1.05542]